bitfinex-derivatives/quotes_ETHF0:USTF0_20250428
["timestamp","ask_amount","ask_price","bid_price","bid_amount"]
[1745806897970,3.2078,1770.6,1770.5,42.4063]
[1745806898166,3.2078,1770.8,1770.5,47.4063]
[1745806898374,3.2078,1770.8,1770.6,1.6096]
[1745806898575,4.33676,1770.8,1770.7,4.102]
[1745806898971,3.2078,1770.8,1770.7,6.84062]
[1745806899481,14.81694617,1770.9,1770.8,1.12895]
[1745806899680,14.81694617,1770.9,1770.8,3.89255]
[1745806899875,15.94583617,1770.9,1770.8,2.7636]
[1745806900276,19.15363617,1770.9,1770.8,1.6096]
[1745806901073,4.33669,1770.9,1770.8,1.6096]
[1745806901880,3.2078,1770.9,1770.8,2.73855]
[1745806902674,4.33669,1770.9,1770.8,1.6096]
[1745806903367,5.43979,1770.9,1770.8,1.6096]
[1745806904377,1.12908,1770.6,1770.5,40.8]
[1745806904583,1.12908,1770.6,1770.5,44.901]
[1745806905177,1.12908,1770.6,1770.5,46.5314]
[1745806906287,2.83038,1770.6,1770.5,46.5314]
[1745806907782,2.83038,1770.6,1770.5,44.901]
[1745806908385,2.83038,1770.6,1770.5,46.5838]
[1745806909984,2.83038,1770.6,1770.5,44.901]
[1745806911789,9.52403,1770.6,1770.0,1.12946]
[1745806911980,1.12932,1770.3,1770.0,5.7555]
[1745806912290,1.12925,1770.4,1770.2,1.12932]
[1745806912477,1.12927,1770.3,1770.2,1.7024]
[1745806912886,1.12927,1770.3,1770.2,42.5024]
[1745806914387,1.12927,1770.3,1770.2,40.8]
[1745806915090,2.87407,1770.3,1770.2,40.8]
[1745806919496,2.87407,1770.3,1769.8,3.65366242]
[1745806919497,1.12959,1769.8,1769.7,67.476]
[1745806919697,1.12959,1769.8,1769.7,4.102]
[1745806920091,1.12959,1769.8,1769.7,5.8034]
[1745806920305,1.12959,1769.8,1769.7,4.102]
[1745806920612,5.99569,1769.8,1769.7,44.902]
[1745806921000,4.8661,1769.8,1769.7,44.902]
[1745806921496,5.99569,1769.8,1769.7,44.902]
[1745806922711,3.2078,1769.8,1769.7,46.03166]
[1745806922902,3.2078,1769.8,1769.7,47.17556]
[1745806923304,3.2078,1769.8,1769.7,52.17556]
[1745806923506,1.6136,1770.0,1769.9,1.12953]
[1745806923507,4.8214,1770.0,1769.9,1.12953]
[1745806923707,1.6136,1770.0,1769.9,1.12953]
[1745806923908,1.0983,1770.1,1770.0,1.12946]
[1745806924102,5.888,1770.5,1770.0,1.12946]
[1745806924103,1.6136,1770.3,1770.1,1.12937]
[1745806924312,2.74287,1770.3,1770.1,2.84157]
[1745806924511,2.74287,1770.3,1770.1,1.12937]
[1745806924710,1.5805,1770.2,1770.1,4.102]
[1745806924909,2.70984,1770.2,1770.1,4.102]
[1745806925114,5.91764,1770.2,1770.1,4.102]
[1745806926718,5.4693,1770.4,1770.2,1.12931]
[1745806926919,1.12927,1770.3,1770.2,1.6468]
[1745806927513,6.59855,1770.4,1770.2,2.77614]
[1745806927713,1.12927,1770.3,1770.2,1.6468]
[1745806928521,7.14883,1770.4,1770.2,2.77611]
[1745806928818,6.0196,1770.4,1770.2,1.6468]
[1745806929019,7.14883,1770.4,1770.2,2.77611]
[1745806929512,7.14883,1770.4,1770.3,1.7532]
[1745806931119,6.0196,1770.4,1770.3,2.88247]
[1745806931519,7.14881,1770.4,1770.3,1.7532]
[1745806931819,7.14881,1770.4,1770.3,2.88247]
[1745806932022,6.0196,1770.4,1770.3,2.88247]
[1745806932217,7.14881,1770.4,1770.3,2.88247]
[1745806932724,7.14881,1770.4,1770.3,1.7532]
[1745806933224,1.12933,1770.3,1770.1,6.30958]
[1745806933417,2.75053,1770.3,1770.1,1.12938]
[1745806933721,4.3418,1770.2,1769.8,5.22555]
[1745806933920,1.12949,1770.0,1769.8,5.22555]
[1745806934121,1.12953,1769.9,1769.8,4.096]
[1745806934523,1.12953,1769.9,1769.8,5.22559]
[1745806934723,1.12953,1769.9,1769.8,4.096]
[1745806934923,2.7733,1769.9,1769.8,5.22559]
[1745806935125,3.90283,1769.9,1769.8,4.096]
[1745806936621,1.12959,1769.8,1769.7,40.8]
[1745806936823,2.72589,1769.8,1769.7,40.8]
[1745806937023,5.93369,1769.8,1769.7,40.8]
[1745806938236,11.02905366,1769.8,1769.7,40.8]
[1745806939623,10.93369,1769.8,1769.7,40.8]
[1745806939930,11.02905529,1769.8,1769.7,40.8]
[1745806942729,10.93369,1769.8,1769.7,40.8]
[1745806942921,11.02905509,1769.8,1769.7,40.8]
[1745806943424,6.02905509,1769.8,1769.7,40.8]
[1745806944432,6.02905657,1769.8,1769.7,40.8]
[1745806944834,1.12991,1769.3,1769.2,4.096]
[1745806945129,4.33769,1769.4,1769.2,4.096]
[1745806945331,1.12991,1769.3,1769.2,4.096]
[1745806945530,2.71241,1769.3,1769.2,5.6963]
[1745806945836,2.71241,1769.3,1769.2,46.4963]
[1745806948833,2.71241,1769.3,1769.2,44.896]
[1745806949238,2.71241,1769.3,1769.2,40.8]
[1745806951136,1.12991,1769.3,1769.2,40.8]
[1745806951339,5.39559,1769.4,1769.2,43.62707]
[1745806951535,5.39559,1769.4,1769.3,1.6971]
[1745806951730,7.07079,1769.4,1769.3,1.6971]
[1745806952330,1.12991,1769.3,1769.2,40.8]
[1745806952636,2.77951,1769.3,1769.2,40.8]
[1745806953936,2.77951,1769.3,1769.2,41.92997]
[1745806954130,2.77951,1769.3,1769.2,43.51087]
[1745806954641,1.12991,1769.3,1769.2,43.51087]
[1745806954837,4.2657,1769.4,1769.2,43.51087]
[1745806954838,4.33769,1769.4,1769.2,43.51087]
[1745806955033,3.2078,1769.4,1769.3,2.71081]
[1745806955240,3.2078,1769.4,1769.3,3.79081]
[1745806955438,3.2078,1769.4,1769.3,8.79081]
[1745806955837,3.2078,1769.4,1769.3,3.79081]
[1745806957741,3.2078,1769.4,1769.3,8.79081]
[1745806958434,3.2078,1769.4,1769.3,3.79081]
[1745806958842,3.2078,1769.6,1769.5,1.12977]
[1745806959040,4.33752,1769.6,1769.4,1.1298]
[1745806959344,4.33752,1769.6,1769.4,1.12985]
[1745806959345,4.33756,1769.6,1769.4,1.12985]
[1745806961743,4.33756,1769.6,1769.5,1.12978]
[1745806962446,1.12979,1769.5,1769.4,1.12983]
[1745806962745,2.73829,1769.5,1769.4,1.12983]
[1745806963446,3.2078,1769.6,1769.5,1.12978]
[1745806963944,3.2078,1769.6,1769.5,5.22178]
[1745806964641,3.2078,1769.6,1769.5,10.22178]
[1745806964950,2.24927,1769.9,1769.8,1.12959]
[1745806965140,2.24927,1769.9,1769.7,1.12961]
[1745806965340,3.88817,1769.9,1769.7,1.12961]
[1745806965848,1.12961,1769.8,1769.6,1.12968]
[1745806966146,2.7586,1769.9,1769.5,4.092]
[1745806966343,3.88818,1769.9,1769.7,1.12964]
[1745806966548,1.12961,1769.8,1769.6,1.12968]
[1745806966749,2.76851,1769.8,1769.6,1.12968]
[1745806967442,1.6389,1769.8,1769.7,1.12966]
[1745806967642,5.40233,1770.0,1769.8,1.12958]
[1745806968141,2.724,1770.1,1769.8,4.092]
[1745806968351,4.3371,1770.3,1770.1,1.1294]
[1745806968649,1.0361,1770.4,1770.3,1.12927]
[1745806968952,1.0361,1770.4,1770.3,42.21167]
[1745806969149,5.9318,1770.5,1770.3,42.21167]
[1745806969452,5.9318,1770.5,1770.4,1.6174]
[1745806969654,7.06094,1770.5,1770.4,1.6174]
[1745806970852,3.85314,1770.5,1770.4,1.6174]
[1745806971259,1.12921,1770.4,1770.3,41.0824]
[1745806971449,2.72411,1770.4,1770.3,41.0824]
[1745806971650,1.5949,1770.4,1770.3,41.0824]
[1745806971855,1.5949,1770.4,1770.3,42.21167]
[1745806975752,3.2078,1770.5,1770.4,1.12921]
[1745806975951,4.2332,1770.7,1770.6,1.12908]
[1745806976152,3.2078,1770.7,1770.6,1.12908]
[1745806977155,2.739,1770.8,1770.7,1.12902]
[1745806977353,3.2078,1771.0,1770.9,1.12889]
[1745806977555,4.2748,1771.0,1770.9,1.12889]
[1745806978962,5.983,1771.0,1770.9,1.12889]
[1745806979455,4.2748,1771.0,1770.9,1.12889]
[1745806979766,1.7237,1771.3,1771.2,1.1287]
[1745806979960,1.7237,1771.3,1771.2,5.2197]
[1745806980157,1.7237,1771.3,1771.2,46.0197]
[1745806980759,1.7237,1771.3,1771.2,46.3019]
[1745806982957,2.0984,1771.5,1771.4,1.12857]
[1745806984260,3.7455,1771.5,1771.4,1.12857]
[1745806985160,3.2078,1771.8,1771.7,1.12838]
[1745806985367,4.8549,1771.8,1771.7,5.21738]
[1745806989864,5.98322,1771.8,1771.7,4.089]
[1745806992066,10.98322,1771.8,1771.7,4.089]
[1745806992465,5.98322,1771.8,1771.7,4.089]
[1745806994869,3.2078,1772.0,1771.9,1.12821]
[1745806995065,4.8101,1772.0,1771.9,1.12821]
[1745806995261,1.6023,1772.0,1771.9,1.12821]
[1745806995566,1.6023,1772.0,1771.9,41.92821]
[1745806997172,2.73049,1772.0,1771.9,40.8]
[1745806997375,1.6023,1772.0,1771.9,41.92825]
[1745806998470,2.73049,1772.0,1771.9,40.8]
[1745807000867,2.73049,1772.0,1771.9,41.082]
[1745807001564,2.73049,1772.0,1771.9,42.21025]
[1745807001762,2.73049,1772.0,1771.9,41.082]
[1745807002162,2.73049,1772.0,1771.9,42.21025]
[1745807002565,1.6023,1772.0,1771.9,42.21025]
[1745807003060,1.9459,1772.1,1772.0,1.12819]
[1745807003263,0.9711,1772.1,1772.0,6.79269]
[1745807003472,2.6099,1772.1,1772.0,6.79269]
[1745807003772,3.73803,1772.1,1772.0,4.081]
[1745807003973,2.6099,1772.1,1772.0,5.20919]
[1745807004273,2.6099,1772.1,1772.0,6.84719]
[1745807004573,2.6099,1772.1,1772.0,4.081]
[1745807004776,4.2191,1772.4,1772.2,1.12804]
[1745807005070,2.6069,1772.3,1772.2,1.12804]
[1745807005379,3.7349,1772.3,1772.1,2.76608]
[1745807005674,1.5976,1772.2,1772.1,2.76608]
[1745807006977,1.5976,1772.2,1772.1,1.12808]
[1745807009069,4.8054,1772.2,1772.0,4.081]
[1745807009267,2.7257,1772.2,1772.0,5.20916]
[1745807009475,1.6,1772.1,1772.0,6.91326]
[1745807009667,2.13732,1772.3,1772.0,5.7851]
[1745807009869,2.6243,1772.3,1772.2,1.12806]
[1745807010070,3.7523,1772.3,1772.2,1.12806]
[1745807011178,2.6243,1772.3,1772.2,1.12806]
[1745807014879,2.6243,1772.3,1772.2,2.73186]
[1745807015280,2.6243,1772.3,1772.2,1.12806]
[1745807017482,4.2191,1772.4,1772.3,1.128]
[1745807017779,3.6043,1772.4,1772.3,5.203]
[1745807018382,7.94003,1772.4,1772.3,5.203]
[1745807018577,7.94003,1772.4,1772.3,4.075]
[1745807018777,12.94003,1772.4,1772.3,4.075]
[1745807019182,1.12815,1772.1,1772.0,4.075]
[1745807019379,4.33595,1772.1,1772.0,4.075]
[1745807021179,3.2078,1772.1,1772.0,5.20319]
[1745807021685,5.8461,1772.1,1772.0,5.20319]
[1745807021982,6.97423,1772.1,1772.0,5.20319]
[1745807022183,5.8461,1772.1,1772.0,5.48509]
[1745807022483,6.97423,1772.1,1772.0,5.48509]
[1745807022782,5.8461,1772.1,1772.0,5.48509]
[1745807023284,6.97423,1772.1,1772.0,5.48509]
[1745807023786,6.97423,1772.1,1772.0,4.3569]
[1745807030385,20.16816936,1772.1,1772.0,4.3569]
[1745807031485,20.16816936,1772.1,1772.0,0.2819]
[1745807031992,25.16816936,1772.1,1772.0,0.2819]
[1745807032288,20.16816936,1772.1,1772.0,0.2819]
[1745807037498,6.97423,1772.1,1772.0,1.41009]
[1745807038399,5.8461,1772.1,1772.0,1.41009]
[1745807038595,2.6383,1772.1,1772.0,3.05979]
[1745807038901,1.6382,1772.1,1772.0,3.05979]
[1745807039098,11.23124,1772.3,1772.0,1.9316]
[1745807039401,1.7086,1772.2,1772.1,2.77777]
[1745807040905,3.2078,1772.3,1772.2,1.12806]
[1745807041102,3.2078,1772.3,1772.1,1.40999]
[1745807041303,5.8052,1772.3,1772.2,1.12806]
[1745807041497,6.9332,1772.3,1772.1,2.99498]
[1745807041801,1.59,1772.2,1772.1,2.99498]
[1745807042005,5.3432,1772.3,1772.1,2.99498]
[1745807042198,6.9332,1772.3,1772.1,1.40998]
[1745807042404,1.59,1772.2,1772.1,1.40998]
[1745807042609,4.2152,1772.3,1772.2,1.12806]
[1745807042997,3.2078,1772.3,1772.2,1.12806]
[1745807043606,3.2078,1772.3,1772.2,1.84066]
[1745807044204,3.2078,1772.3,1772.2,1.12806]
[1745807044406,4.8157,1772.3,1772.2,1.12806]
[1745807044806,1.12806,1772.2,1772.1,0.2819]
[1745807045006,3.65586,1772.2,1772.1,0.2819]
[1745807046394,3.65586,1772.2,1772.1,1.41003]
[1745807046395,2.5278,1772.2,1772.1,1.41003]
[1745807046600,3.65586,1772.2,1772.1,1.41003]
[1745807046901,3.65586,1772.2,1772.1,0.2819]
[1745807047512,2.5278,1772.2,1772.1,1.41003]
[1745807048210,3.65586,1772.2,1772.1,2.0354]
[1745807048709,3.65586,1772.2,1772.1,0.2819]
[1745807048909,2.5278,1772.2,1772.1,1.41003]
[1745807049411,3.65586,1772.2,1772.1,1.41003]
[1745807049811,2.5278,1772.2,1772.1,1.41003]
[1745807050013,3.65586,1772.2,1772.1,0.2819]
[1745807052909,2.5278,1772.2,1772.1,1.41003]
[1745807054015,2.5278,1772.2,1772.1,5.47903]
[1745807054510,3.65586,1772.2,1772.1,4.3509]
[1745807054814,8.65586,1772.2,1772.1,0.2819]
[1745807055114,3.65586,1772.2,1772.1,0.2819]
[1745807061414,9.54386,1772.2,1772.1,0.2819]
[1745807062820,12.75166,1772.2,1772.1,0.2819]
[1745807067225,6.86366,1772.2,1772.1,0.2819]
[1745807067518,6.86366,1772.2,1772.1,1.41003]
[1745807067723,6.86366,1772.2,1772.1,0.2819]
[1745807068120,6.86366,1772.2,1772.1,1.41003]
[1745807068825,6.86366,1772.2,1772.1,0.2819]
[1745807069218,5.7356,1772.2,1772.1,1.41003]
[1745807069418,5.7356,1772.2,1772.1,3.00683]
[1745807069628,6.86366,1772.2,1772.1,0.2819]
[1745807070125,5.7356,1772.2,1772.1,1.41003]
[1745807071127,5.7356,1772.2,1772.1,0.2819]
[1745807071328,5.7356,1772.2,1772.1,1.41003]
[1745807071725,4.8157,1772.2,1772.1,1.41003]
[1745807071928,3.2078,1772.2,1772.1,1.41003]
[1745807072620,3.2078,1772.2,1772.1,7.03343]
[1745807072825,3.2078,1772.2,1772.1,8.61603]
[1745807073625,3.2078,1772.2,1772.1,1.8645]
[1745807073827,4.33586,1772.2,1772.1,1.8645]
[1745807074326,4.33586,1772.2,1772.1,0.2819]
[1745807075029,3.2078,1772.2,1772.1,1.41003]
[1745807075226,3.2078,1772.2,1772.1,3.14193]
[1745807075628,4.33586,1772.2,1772.1,2.0138]
[1745807075831,4.8465,1772.2,1772.1,3.14193]
[1745807076432,5.97456,1772.2,1772.1,2.0138]
[1745807076629,5.97456,1772.2,1772.1,0.2819]
[1745807078521,6.06977846,1772.2,1772.1,0.2819]
[1745807078726,5.97456,1772.2,1772.1,0.2819]
[1745807078927,4.8465,1772.2,1772.1,0.2819]
[1745807079125,5.97456,1772.2,1772.1,0.2819]
[1745807080126,6.06977925,1772.2,1772.1,0.2819]
[1745807080837,6.06977948,1772.2,1772.1,0.2819]
[1745807081431,5.97456,1772.2,1772.1,0.2819]
[1745807081635,4.8465,1772.2,1772.1,1.41003]
[1745807082131,3.2078,1772.2,1772.1,6.41003]
[1745807082326,3.2078,1772.2,1772.1,7.03393]
[1745807082523,3.2078,1772.2,1772.1,8.66713]
[1745807082932,3.2078,1772.2,1772.1,3.66713]
[1745807083136,3.2078,1772.2,1772.1,3.04323]
[1745807083335,13.191663,1772.3,1772.2,1.12806]
[1745807083538,13.191663,1772.3,1772.2,2.79886]
[1745807083738,13.191663,1772.3,1772.2,7.79886]
[1745807084344,13.191663,1772.3,1772.2,11.00666]
[1745807084633,13.191663,1772.3,1772.2,9.33586]
[1745807084840,13.191663,1772.3,1772.2,5.47396]
[1745807085031,13.191663,1772.3,1772.2,4.3459]
[1745807085231,16.880863,1772.3,1772.2,4.3459]
[1745807085437,20.088663,1772.3,1772.2,4.3459]
[1745807086543,18.960663,1772.3,1772.2,0.2819]
[1745807086842,6.897,1772.3,1772.2,0.2819]
[1745807087142,5.769,1772.3,1772.2,0.2819]
[1745807087645,6.897,1772.3,1772.2,0.2819]
[1745807089246,5.769,1772.3,1772.2,0.2819]
[1745807090134,6.897,1772.3,1772.2,0.2819]
[1745807090336,5.769,1772.3,1772.2,0.2819]
[1745807090642,6.897,1772.3,1772.2,0.2819]
[1745807095146,5.769,1772.3,1772.2,0.2819]
[1745807095340,5.769,1772.3,1772.2,1.40996]
[1745807096547,3.2078,1772.3,1772.2,7.99246]
[1745807096940,3.2078,1772.3,1772.2,7.05646]
[1745807097438,4.3358,1772.3,1772.2,4.3459]
[1745807097634,6.9556,1772.3,1772.2,4.3459]
[1745807099949,6.9556,1772.3,1772.2,5.47396]
[1745807100253,6.9556,1772.3,1772.2,4.3459]
[1745807100442,10.8276,1772.3,1771.7,1.12834]
[1745807100752,1.12825,1771.9,1771.7,1.12838]
[1745807100949,2.6359,1771.8,1771.7,1.12838]
[1745807101452,2.6359,1771.8,1771.7,41.92838]
[1745807102145,3.76422,1771.8,1771.7,40.8]
[1745807103151,11.97202,1771.8,1771.7,40.8]
[1745807103353,17.86002,1771.8,1771.7,40.8]
[1745807103548,17.95526608,1771.8,1771.7,40.8]
[1745807104252,17.86002,1771.8,1771.7,40.8]
[1745807104445,17.95526873,1771.8,1771.7,40.8]
[1745807105457,12.95526873,1771.8,1771.7,40.8]
[1745807107750,12.95526753,1771.8,1771.7,40.8]
[1745807108647,1.12863,1771.3,1771.2,4.064]
[1745807109346,1.12872,1771.2,1771.0,1.12882]
[1745807109553,1.6333,1771.1,1771.0,2.72692]
[1745807109740,3.2078,1771.2,1771.1,1.12876]
[1745807109943,4.7909,1771.2,1771.1,2.81306]
[1745807110456,3.2078,1771.2,1771.1,43.61306]
[1745807110847,1.9103,1771.3,1771.2,1.1287]
[1745807111048,3.4934,1771.3,1771.2,1.6843]
[1745807112557,1.1287,1771.2,1771.1,40.8]
[1745807112757,2.7118,1771.2,1771.1,40.8]
[1745807113259,1.5831,1771.2,1771.1,40.8]
[1745807113554,1.5831,1771.2,1771.1,42.532]
[1745807114350,2.7118,1771.2,1771.1,42.532]
[1745807114657,1.5831,1771.2,1771.1,40.8]
[1745807114858,5.9196,1771.2,1771.1,40.8]
[1745807123873,1.12889,1770.9,1770.8,4.064]
[1745807124074,4.33669,1770.9,1770.8,4.064]
[1745807124274,4.33669,1770.9,1770.8,44.864]
[1745807124668,6.81249,1770.9,1770.8,44.864]
[1745807125779,6.81249,1770.9,1770.8,40.8]
[1745807127676,6.81249,1770.9,1770.8,42.4962]
[1745807131080,6.81249,1770.9,1770.8,40.8]
[1745807132975,6.90778638,1770.9,1770.8,40.8]
[1745807133182,6.90778728,1770.9,1770.8,40.8]
[1745807134775,6.90778895,1770.9,1770.8,40.8]
[1745807135284,6.81249,1770.9,1770.8,40.8]
[1745807136182,4.33669,1770.9,1770.8,40.8]
[1745807136386,5.99459,1770.9,1770.8,40.8]
[1745807137074,6.08988813,1770.9,1770.8,40.8]
[1745807137683,11.97788813,1770.9,1770.8,40.8]
[1745807138078,11.88259,1770.9,1770.8,40.8]
[1745807138285,11.97788979,1770.9,1770.8,40.8]
[1745807139778,11.88259,1770.9,1770.8,40.8]
[1745807139979,11.9778905,1770.9,1770.8,40.8]
[1745807141488,11.97788981,1770.9,1770.8,40.8]
[1745807142076,2.82243,1770.8,1770.3,4.0615]
[1745807142281,1.12921,1770.4,1770.3,2.4612]
[1745807142684,1.12921,1770.4,1770.3,43.2612]
[1745807144585,1.12919,1770.5,1770.3,49.39044]
[1745807144787,1.12919,1770.5,1770.4,1.6052]
[1745807146789,4.33684,1770.7,1770.5,1.12909]
[1745807147090,3.2078,1770.7,1770.6,2.4041]
[1745807147889,3.2078,1770.7,1770.6,8.53318]
[1745807148282,5.888,1770.8,1770.7,1.12902]
[1745807148482,1.12884,1771.0,1770.9,1.12889]
[1745807148678,1.12884,1771.0,1770.8,1.12891]
[1745807148889,1.12884,1771.0,1770.9,2.4041]
[1745807149490,4.806,1771.1,1770.7,4.057]
[1745807149695,2.72757,1771.0,1770.8,2.71975]
[1745807149988,1.12887,1771.0,1770.9,1.5908]
[1745807152694,1.12887,1771.0,1770.9,2.71969]
[1745807152892,4.33659,1771.1,1770.9,2.71969]
[1745807153093,4.33659,1771.1,1771.0,1.6711]
[1745807153591,3.2078,1771.1,1771.0,2.79993]
[1745807153793,4.33656,1771.1,1771.0,1.6711]
[1745807155695,1.12885,1771.0,1770.8,1.12891]
[1745807155894,2.76045,1771.0,1770.9,1.5817]
[1745807156291,1.12889,1770.9,1770.7,5.18597]
[1745807156499,1.12895,1770.8,1770.7,5.18599]
[1745807156690,1.12895,1770.8,1770.7,6.76769]
[1745807156889,1.6316,1770.8,1770.7,6.76769]
[1745807160701,2.76055,1770.8,1770.7,4.057]
[1745807160901,4.8394,1770.8,1770.4,4.847]
[1745807161195,1.12914,1770.5,1770.4,4.056]
[1745807161399,1.12914,1770.5,1770.3,41.92927]
[1745807161601,4.8571,1770.4,1770.3,41.92927]
[1745807163002,5.98631,1770.4,1770.3,41.92927]
[1745807163301,5.98631,1770.4,1770.3,40.8]
[1745807164004,4.8571,1770.4,1770.3,41.92927]
[1745807164995,5.98631,1770.4,1770.3,40.8]
[1745807165702,4.8571,1770.4,1770.3,41.92927]
[1745807165904,3.2078,1770.4,1770.3,41.92927]
[1745807166202,4.8771,1770.6,1770.5,1.12914]
[1745807166902,3.2078,1770.6,1770.5,1.12914]
[1745807167702,3.2078,1770.6,1770.5,2.76834]
[1745807168295,2.6377,1770.7,1770.6,1.12908]
[1745807168498,5.8455,1770.7,1770.6,2.75478]
[1745807169904,3.2078,1770.7,1770.6,2.75478]
[1745807171008,4.8948,1770.8,1770.7,1.12902]
[1745807171614,0.9459,1770.9,1770.6,1.6257]
[1745807171904,1.6521,1770.8,1770.6,1.12904]
[1745807172105,0.8568,1770.7,1770.6,1.12904]
[1745807172402,3.2078,1771.0,1770.5,4.53364]
[1745807172604,4.33664,1771.0,1770.6,2.5022]
[1745807172804,1.6521,1770.9,1770.8,1.1289]
[1745807173007,1.6521,1770.9,1770.8,2.8397]
[1745807176205,1.6521,1770.9,1770.8,1.1289]
[1745807177307,13.191663,1771.6,1770.8,8.2078]
[1745807177509,14.909763,1771.6,1771.5,1.12851]
[1745807177805,14.909763,1771.6,1771.5,5.17951]
[1745807178010,14.909763,1771.6,1771.5,45.97951]
[1745807178907,14.909763,1771.6,1771.5,47.58151]
[1745807180105,14.909763,1771.6,1771.5,46.453]
[1745807180305,14.909763,1771.6,1771.5,45.97951]
[1745807180706,14.909763,1771.6,1771.5,44.851]
[1745807180908,14.909763,1771.6,1771.5,45.97951]
[1745807181104,14.909763,1771.6,1771.5,44.851]
[1745807181705,7.84654,1771.6,1771.5,44.851]
[1745807182008,7.84654,1771.6,1771.5,40.8]
[1745807183613,7.84654,1771.6,1770.8,66.5768]
[1745807183614,6.81335184,1771.6,1770.8,8.9274]
[1745807183814,3.2078,1771.1,1770.9,1.12884]
[1745807184120,2.6404,1771.0,1770.9,1.12884]
[1745807184417,2.6404,1771.0,1770.9,41.92884]
[1745807184718,2.6404,1771.0,1770.9,40.8]
[1745807184910,2.6404,1771.0,1770.9,41.92889]
[1745807185309,2.6404,1771.0,1770.9,40.8]
[1745807185918,2.6404,1771.0,1770.9,41.92889]
[1745807186517,2.6404,1771.0,1770.9,40.8]
[1745807188011,3.76923,1771.0,1770.9,40.8]
[1745807188313,7.6404,1771.0,1770.5,4.05]
[1745807188522,4.33681,1770.8,1770.5,5.17914]
[1745807188721,2.5123,1770.7,1770.6,40.8]
[1745807189017,3.64132,1770.7,1770.6,40.8]
[1745807191115,1.12931,1770.3,1769.9,4.05]
[1745807191317,1.12925,1770.4,1770.1,1.12939]
[1745807191619,2.5998,1770.3,1770.2,40.8]
[1745807192417,3.72907,1770.3,1770.2,40.8]
[1745807192811,2.5998,1770.3,1770.2,40.8]
[1745807193012,3.72907,1770.3,1770.2,40.8]
[1745807193612,3.2078,1770.5,1770.2,40.8]
[1745807193811,1.6987,1770.4,1770.3,1.12924]
[1745807194019,1.6987,1770.4,1770.2,40.8]
[1745807194517,2.82791,1770.4,1770.2,41.92931]
[1745807194824,1.6987,1770.4,1770.2,41.92931]
[1745807195017,1.6987,1770.3,1770.2,40.8]
[1745807195323,2.82797,1770.3,1770.2,40.8]
[1745807195525,1.6987,1770.3,1770.2,40.8]
[1745807195822,2.82797,1770.3,1770.2,40.8]
[1745807196525,1.6987,1770.3,1770.2,40.8]
[1745807196728,2.82797,1770.3,1770.2,40.8]
[1745807197925,1.6987,1770.3,1770.2,40.8]
[1745807198222,2.82797,1770.3,1770.2,40.8]
[1745807198517,0.881,1770.6,1770.2,40.8]
[1745807198518,5.888,1770.6,1770.2,49.851]
[1745807198724,5.888,1770.6,1770.5,1.12914]
[1745807198921,4.33688,1770.7,1770.5,1.12914]
[1745807199125,1.12908,1770.6,1770.4,1.12916]
[1745807199325,1.12908,1770.6,1770.5,1.681]
[1745807199530,2.73898,1770.6,1770.5,1.681]
[1745807200022,1.6099,1770.6,1770.5,1.681]
[1745807200228,1.6099,1770.6,1770.5,2.81014]
[1745807201414,3.2078,1770.7,1770.6,1.12908]
[1745807201618,3.2078,1770.7,1770.6,2.74738]
[1745807201819,4.9066,1770.7,1770.6,2.74738]
[1745807203830,1.7989,1771.0,1770.9,1.12889]
[1745807204030,4.9066,1771.1,1771.0,1.12883]
[1745807204328,6.03536,1771.1,1771.0,2.74713]
[1745807204633,4.9066,1771.1,1771.0,2.74713]
[1745807204927,6.03536,1771.1,1771.0,1.6183]
[1745807206133,4.9066,1771.1,1771.0,2.74713]
[1745807206631,6.03536,1771.1,1771.0,2.74713]
[1745807207632,4.9066,1771.1,1771.0,2.74713]
[1745807207936,6.03536,1771.1,1771.0,1.6183]
[1745807209539,4.9066,1771.1,1771.0,2.74713]
[1745807209833,6.03536,1771.1,1771.0,2.74713]
[1745807210030,4.9066,1771.1,1770.9,1.41116]
[1745807210232,3.2665,1771.0,1770.9,1.41116]
[1745807210734,3.2665,1771.0,1770.9,3.08876]
[1745807211439,3.2078,1771.1,1770.9,0.2823]
[1745807211740,1.6492,1771.0,1770.9,1.41119]
[1745807211940,1.6492,1771.0,1770.9,3.08879]
[1745807212538,2.4788,1771.0,1770.9,3.08879]
[1745807213943,4.33656,1771.1,1770.9,3.08875]
[1745807214134,5.7457,1771.1,1771.0,1.12883]
[1745807214745,3.2078,1771.1,1771.0,1.12883]
[1745807215241,3.2078,1771.1,1771.0,2.78013]
[1745807215943,5.888,1771.4,1771.0,50.6591]
[1745807216144,7.70008,1771.6,1771.4,1.12856]
[1745807216340,1.6841,1771.5,1771.4,1.12856]
[1745807216841,4.8875,1771.6,1771.5,1.12851]
[1745807217043,7.65704,1771.6,1771.5,1.6743]
[1745807217241,6.5286,1771.6,1771.5,2.80281]
[1745807217741,6.5286,1771.6,1771.5,1.6743]
[1745807218343,6.5286,1771.6,1771.4,45.97453]
[1745807218545,2.76961,1771.5,1771.4,44.846]
[1745807219041,2.76961,1771.5,1771.4,40.8]
[1745807222346,2.76961,1771.5,1771.4,41.0822]